Cogmind - Beta 17 @@@ ROGUE MODE // 2026.06.28 @ 03:37:59 Player: THN-L0C Result: Destroyed by 2L-LXX(R) with Subdweller Laser Performance ------------- Evolutions (0) 0 Regions Visited (3) 600 Robots Destroyed (31) 155 Value Destroyed (554) 554 Prototype IDs (0) 0 Alien Tech Used (0) 0 Bonus (-175) -175 TOTAL SCORE: 1134 Bonus ------- Friendly Fire -175 Cogmind --------- Core Integrity 0/250 Matter 300/300 Energy 265/265 System Corruption 1% Temperature Cool (6) Movement Treading (240) Ox1 Location -10/Subcaves Parts ------- > --- POWER (1) -------- Improved Ion Engine > --- PROPULSION (2) --- Light Treads > --- UTILITY (2) ------ Large Storage Unit Insulated Plating > --- WEAPON (2) ------- Beam Rifle Beam Rifle > --- INVENTORY (15) --- Improved Heat Sink Medium Matter Pod (100) Improved Terrain Scanner Seismic Detector Improved Utility Shielding Hardened Light Armor Plating Scrap Shield Bomb Drone Bay Beam Rifle Beam Rifle Subdweller Shrapnel Launcher Mining Laser Multitool Peak State ------------ > --- POWER ------------ Improved Ion Engine > --- PROPULSION ------- Light Treads Light Treads > --- UTILITY ---------- Improved Heat Sink Large Storage Unit > --- WEAPON ----------- Beam Rifle Beam Rifle > --- INVENTORY -------- Scrap Suit Medium Matter Pod Improved Terrain Scanner Seismic Detector Improved Utility Shielding Hardened Light Armor Plating Hardened Light Armor Plating Insulated Plating Bomb Drone Bay Beam Rifle Beam Rifle Beamcaster Mining Laser [Rating: 16] Favorites ----------- Power Improved Ion Engine Engine Improved Ion Engine Propulsion Light Treads Treads Light Treads Wheel Compact Wheel Utility Large Storage Unit Device Improved Heat Sink Storage Large Storage Unit Protection Insulated Plating Weapon Beam Rifle Energy Gun Beam Rifle Ballistic Gun Assault Rifle Special Weapon Mining Laser Build | -11 -10 -10 -10 ------- Run | Yrd Mat Min Sub Slots Evolved . | . . . . Power . | . . . . Propulsion . | . . . . Utility . | . . . . Weapon . | . . . . Parts Attached 25 | 8 4 9 4 Power 4 | 2 . 2 . Engine 4 | 2 . 2 . Core . | . . . . Reactor . | . . . . Propulsion 4 | 2 . 2 . Treads 2 | . . 2 . Leg . | . . . . Wheel 2 | 2 . . . Hover . | . . . . Flight . | . . . . Utility 9 | 2 2 3 2 Device 4 | 1 1 2 . Storage 2 | 1 1 . . Processor . | . . . . Hackware . | . . . . Protection 3 | . . 1 2 Artifact . | . . . . Weapon 8 | 2 2 2 2 Energy Gun 5 | . 1 2 2 Energy Cannon . | . . . . Ballistic Gun 2 | 2 . . . Ballistic Cannon . | . . . . Launcher . | . . . . Special Weapon 1 | . 1 . . Impact Weapon . | . . . . Slashing Weapon . | . . . . Piercing Weapon . | . . . . Special Melee Weapon . | . . . . Unidentified Prototypes . | . . . . Parts Lost 5 | . . 3 2 Power 1 | . . 1 . Propulsion 3 | . . 2 1 Utility 1 | . . . 1 Weapon . | . . . . Highest Loss Streak 3 | . . 3 1 To Critical Strikes . | . . . . Average Backups 11 | 4 7 13 12 Power . | . . . . Propulsion . | 1 2 . . Utility 7 | . 3 8 8 Weapon 3 | . 1 4 3 Tool/Special . | . . . . Unused Backups 15 | . 3 1 11 Power . | . . . . Propulsion . | . . . . Utility 8 | . 2 . 6 Weapon 5 | . 1 1 3 Tool/Special 2 | . . . 2 Average Slot Usage (%) 98 | . 100 96 99 Engine 12 | . 14 11 14 Treads 25 | . . 26 27 Wheel 2 | . 28 1 . Device 7 | . 14 13 1 Storage 14 | . 14 14 14 Protection 6 | . . . 11 Energy Gun 23 | . 5 27 23 Ballistic Gun 1 | . 15 . . Special Weapon 2 | . 7 . 4 Peak Build Rating 16 | 7 9 16 16 Average Rating 13 | 6 8 14 14 On Entrance 8 | . 7 9 16 Avg Prop Armor Cover (%) . | . . . . Naked Turns . | . . . . Heaviest Build 38 | 14 28 34 38 Greatest Support 40 | 32 32 40 40 Greatest Overweight (x) 1 | . . . 1 Average Overweight (x) . | . . . . Largest Inventory Capacity 15 | 8 15 15 15 Average Capacity 14 | 7 9 15 15 Most Carried 15 | 6 9 15 15 Average Carried 13 | 4 7 14 14 Final Capacity 15 | 8 15 15 15 Final Carried 15 | 6 9 15 15 Class Distribution -------------------- 100% | Mutant Dominant Class ---------------- Mutant | -10/Materials Mutant | -10/Mines Mutant | -10/Subcaves Resources | -11 -10 -10 -10 ----------- Run | Yrd Mat Min Sub Matter Collected 729 | 364 102 147 116 Remotely 184 | 163 21 . . Salvage Created 969 | 197 35 316 421 Parts 67 | 14 9 21 23 Haulers Intercepted . | . . . . Recyclers Shooed . | . . . . Parts Field Recycled . | . . . . Retrieved Matter . | . . . . Parts Self-Destructed 5 | . . . 5 Prevented . | . . . . Parts Restored . | . . . . Kills | -11 -10 -10 -10 ------- Run | Yrd Mat Min Sub Combat Hostiles Destroyed 19 | . 3 7 9 Guns 19 | . 3 7 9 Classes Destroyed 8 | 3 1 1 3 Worker 3 | 1 . 2 . Tunneler 6 | 6 . . . Recycler 2 | 1 . 1 . Swarmer 9 | . 3 5 1 Grunt 4 | . . 2 2 Sentry 1 | . . . 1 Artisan 1 | . . . 1 Subdweller 5 | . . . 5 Thug 1 | . . 1 . Best Kill Streak 3 | 2 3 3 2 Combat Bots Only 3 | . 3 3 2 Max Kills in Single Turn 1 | 1 1 1 1 Gunslinging . | . . . . Exploded . | . . . . Melee . | . . . . Uniques/NPCs Destroyed . | . . . . Combat | -11 -10 -10 -10 -------- Run | Yrd Mat Min Sub Hostile Shots Fired 118 | . 18 44 56 Missed 36 | . 8 13 15 Hits 82 | . 10 31 41 Projectile 82 | . 10 31 41 Critical Strikes 2 | . . 1 1 Damage Taken 1162 | . 80 355 727 Core 260 | . 51 66 143 Absorbed by Shields . | . . . . Core Remaining (%) 100 | 100 . . . Volleys Fired 104 | 25 14 18 47 Largest 2 | 2 2 2 2 Hottest 112 | 40 100 112 112 Shots Fired 182 | 50 23 38 71 Gun 158 | 50 18 38 52 Cannon . | . . . . Launcher . | . . . . Special 24 | . 5 . 19 Kinetic 68 | 50 18 . . Thermal 114 | . 5 38 71 Explosive . | . . . . Electromagnetic . | . . . . Robot Hit Streak 12 | 7 4 12 11 Robot Miss Streak 4 | 4 4 2 3 Penetration Max . | . . . . Secondary Targets 4 | . . 2 2 Max Gunslinging Chain 1 | . . 1 1 Shots Hit Robots 103 | 29 8 26 40 Core Hits 47 | 11 3 15 18 Critical Kills . | . . . . Critical Parts Destroyed 2 | 2 . . . Critical Strikes 7 | 2 . 2 3 Burn 5 | . . 2 3 Destroy 2 | 2 . . . Melee Attacks . | . . . . Impact . | . . . . Slashing . | . . . . Piercing . | . . . . Sneak Attacks . | . . . . Combat Hostiles . | . . . . Follow-up Attacks . | . . . . Damage Inflicted 1412 | 309 99 407 597 Guns 1397 | 309 99 392 597 Cannons . | . . . . Explosions . | . . . . Melee . | . . . . Ramming 15 | . . 15 . Kinetic 408 | 309 99 . . Thermal 989 | . . 392 597 Explosive . | . . . . Electromagnetic . | . . . . Impact . | . . . . Slashing . | . . . . Piercing . | . . . . Highest Corruption 1 | . . 1 1 Average Corruption 1 | . . 1 1 Corruption Purged . | . . . . Corruption Blocked . | . . . . Effects 20 | . . 11 9 Message Errors 6 | . . 4 2 Matter Fused 6 | . . 1 5 Energy Discharges 2 | . . . 2 Data Loss (minor) 2 | . . 2 . Data Loss (major) 2 | . . 2 . Misfires 2 | . . 2 . Overload Shots . | . . . . Overflow Damage . | . . . . Projectiles . | . . . . Explosions . | . . . . Melee . | . . . . Knockbacks . | . . . . Impact . | . . . . Kinetic . | . . . . Secondary . | . . . . Self-Inflicted Damage . | . . . . Shots . | . . . . Rammed 2 | . . 2 . Targets Rammed 3 | . . 3 . Kicked . | . . . . Crushed 1 | . . 1 . Highest Temperature 236 | . 60 236 125 Average Temperature 59 | . 28 96 42 Received Heat Transfer 327 | . . 129 198 Siege Activations . | . . . . Martial Activations . | . . . . Shielding Activations . | . . . . Robots Disrupted . | . . . . Combat Hostiles . | . . . . Robots Corrupted . | . . . . Combat Hostiles . | . . . . Parts Fried . | . . . . Impact Corruptions . | . . . . Robots Melted . | . . . . Combat Hostiles . | . . . . Parts Melted 2 | . . . 2 Heat Transferred 2886 | . . 1147 1739 Parts Sabotaged . | . . . . Parts Stolen . | . . . . Parts Stripped . | . . . . Power Chain Reactions . | . . . . Alert | -11 -10 -10 -10 ------- Run | Yrd Mat Min Sub Maximum Alert Level . | . . . . Low Security (%) 100 | 100 100 100 . Level 1 . | . . . . Level 2 . | . . . . Level 3 . | . . . . Level 4 . | . . . . Level 5 . | . . . . High Security . | . . . . Max Security . | . . . . Peak Influence 72 | 10 50 72 . Initial . | . . . . Average 9 | 1 13 9 . Influence Increases 380 | 40 75 175 90 Destroy 0b10 Robot/C 280 | . 60 140 80 Destroy 0b10 Robot/NC 55 | 40 . 15 . Destroy Leader 40 | . 10 20 10 Destroy Structure 5 | . 5 . . Influence Decreases 377 | 40 75 175 87 Time Decay 337 | 40 75 145 77 Lost Part 40 | . . 30 10 Squads Dispatched . | . . . . Investigation . | . . . . Extermination . | . . . . Reinforcement . | . . . . Assault . | . . . . Garrison . | . . . . Intercept . | . . . . Searches Triggered . | . . . . Construction Impeded . | . . . . Haulers Reinforced . | . . . . Active Scanning Responses . | . . . . Cargo Convoy Interrupts . | . . . . Stealth | -11 -10 -10 -10 --------- Run | Yrd Mat Min Sub Distress Signals . | . . . . Communications Jammed . | . . . . Distress Signals . | . . . . Times Spotted 28 | . 4 12 12 Peak Tracking Total 3 | . 3 3 3 Tactical Retreats . | . . . . Traps | -11 -10 -10 -10 ------- Run | Yrd Mat Min Sub Traps Triggered 1 | . . 1 . Indirectly . | . . . . Trap Hack Attempts . | . . . . Triggered . | . . . . Disarmed . | . . . . Reprogrammed . | . . . . Reused . | . . . . Traps Extracted . | . . . . Installed . | . . . . Triggered . | . . . . Machines | -11 -10 -10 -10 ---------- Run | Yrd Mat Min Sub Machines Disabled . | . . . . Max in Single Turn . | . . . . Machines Repaired . | . . . . Machines Dismantled . | . . . . Machines Sabotaged . | . . . . Overloaded Fab Kills . | . . . . Hacking | -11 -10 -10 -10 --------- Run | Yrd Mat Min Sub Machines Accessed 3 | . . 2 1 Terminals . | . . . . Fabricators . | . . . . Repair Stations . | . . . . Recycling Units . | . . . . Scanalyzers . | . . . . Garrison Access . | . . . . Total Hacks 5 | . . 2 3 Successful 5 | . . 2 3 Failed . | . . . . Catastrophic . | . . . . Database Lockouts . | . . . . Manual . | . . . . Terminals . | . . . . Fabricators . | . . . . Repair Stations . | . . . . Recycling Units . | . . . . Scanalyzers . | . . . . Garrison Access . | . . . . Terminal Hacks 5 | . . 2 3 Record 3 | . . . 3 Open Door 2 | . . 2 . Fabricator Hacks . | . . . . Repair Station Hacks . | . . . . Recycling Unit Hacks . | . . . . Scanalyzer . | . . . . Garrison Access Hacks . | . . . . Unauthorized Hacks . | . . . . Terminals . | . . . . Fabricators . | . . . . Repair Stations . | . . . . Recycling Units . | . . . . Scanalyzers . | . . . . Garrison Access . | . . . . Data Cores Recovered . | . . . . Used . | . . . . Hacking Detections . | . . . . Full Trace Events . | . . . . Feedback Events . | . . . . Feedback Blocked . | . . . . Robot Schematics Acquired . | . . . . Robots Built . | . . . . Authchips . | . . . . Time . | . . . . Total Robot Build Rating . | . . . . Part Schematics Acquired . | . . . . Parts Built . | . . . . Authchips . | . . . . Time . | . . . . Total Part Build Rating . | . . . . Part Studies Acquired . | . . . . Parts Repaired . | . . . . Time . | . . . . Parts Recycled . | . . . . Recycled Matter . | . . . . Retrieved Matter . | . . . . Retrieved Components . | . . . . Parts Scanalyzed . | . . . . Part Schematics Acquired . | . . . . Parts Damaged . | . . . . Bothacking | -11 -10 -10 -10 ------------ Run | Yrd Mat Min Sub Used RIF Installer . | . . . . Robots Hacked . | . . . . Non-combat . | . . . . Combat . | . . . . Robot Hacks Applied . | . . . . Relay Couplers Released . | . . . . Fabnet Peak Effective % . | . . . . Robots Rewired . | . . . . Allies Hacked . | . . . . Hacks Repelled . | . . . . Allies | -11 -10 -10 -10 -------- Run | Yrd Mat Min Sub Total Allies . | . . . . Largest Group . | . . . . Highest-Rated Group . | . . . . Highest-Rated Ally . | . . . . Total Orders . | . . . . Ally Attacks . | . . . . Total Damage . | . . . . Kills . | . . . . Allies Corrupted . | . . . . Allies Melted . | . . . . Intel | -11 -10 -10 -10 ------- Run | Yrd Mat Min Sub Active Infowar (turns) 325 | . 132 . 193 Seismic 325 | . 132 . 193 Robot Analysis Total . | . . . . Derelict Logs Recovered 2 | . . 2 . Drone Launches . | . . . . Drone Recoveries . | . . . . Exploration | -11 -10 -10 -10 ------------- Run | Yrd Mat Min Sub Turns Passed 3751 | 235 280 1469 1767 Spaces Moved 2200 | 144 212 866 978 Core 4 | 4 . . . Treads 1821 | . . 843 978 Legs . | . . . . Wheels 375 | 140 212 23 . Hover . | . . . . Flight . | . . . . Fastest Speed 50 | 50 100 100 160 Average Speed 149 | 98 100 158 160 Slowest Speed 240 | 100 100 160 240 Overloaded Moves . | . . . . Propulsion Burnouts . | . . . . Robots Hopped . | . . . . Potential Cave-ins . | . . . . Cave-ins Triggered . | . . . . Exploration Rate (%) 48 | 6 23 99 67 Regions Visited 3 Branch Regions 2 Pre-discovered Areas 2 | . . 2 . Known Exits Taken . | . . . . Unknown Exits Taken 3 | 1 1 1 . Scrap Searched 1 | . . 1 . Spaces Dug 5 | . 3 . 2 Terrain Destroyed 8 | . 5 . 3 Melee . | . . . . Projectile 8 | . 5 . 3 AOE . | . . . . Terrain Rammed . | . . . . Walls Destroyed . | . . . . Machines Disabled . | . . . . Actions | -11 -10 -10 -10 --------- Run | Yrd Mat Min Sub Total 2428 | 188 250 925 1065 Wait 53 | 7 4 19 23 Move 2197 | 143 211 865 978 Hop . | . . . . Pick Up 25 | 5 9 7 4 Fast Attach 8 | 7 . 1 . Attach 3 | . . 2 1 Detach . | . . . . Swap 20 | 1 5 6 8 Drop 15 | . 7 4 4 Fire 104 | 25 14 18 47 Melee . | . . . . Ram . | . . . . Kick . | . . . . Crush 3 | . . 3 . Escape Stasis . | . . . . Rewire . | . . . . Trap . | . . . . Miscellaneous . | . . . . Route ------- -11/Scrapyard -10/Materials -10/Mines (discovered 3 exits: [*Mat x2] / *Sub) -10/Subcaves (discovered 1 exit: [*Mat]) History --------- Turn | Location | Event 18 | -11/Scrapyard | Discovered new exit (range 12) 236 | -11/Scrapyard | Entered Materials 256 | -10/Materials | Discovered new exit (range 14) 313 | -10/Materials | Build established: Mutant 516 | -10/Materials | Entered Mines 564 | -10/Mines | Met a Derelict who couldn't figure out how to use a Trap Extractor 598 | -10/Mines | Lost 3 parts (1p2n) 818 | -10/Mines | Found a Scrap Suit stashed away for nefarious purposes 824 | -10/Mines | Found Scrap Suit 851 | -10/Mines | Learned location of Zion (-7) 973 | -10/Mines | Discovered new exit (range 12) 1182 | -10/Mines | Joined a pair of Derelicts in attacking an 0b10 outpost 1588 | -10/Mines | Discovered new exit (range 8) 1630 | -10/Mines | Found the Drone Emporium 1638 | -10/Mines | Found Prototype Device 1975 | -10/Mines | Discovered new exit (range 7) 1985 | -10/Mines | Entered Subcaves 2241 | -10/Subcaves | Core integrity fell below 50% 2629 | -10/Subcaves | Discovered new exit (range 8) 2961 | -10/Subcaves | Visited Clippyterm 2966 | -10/Subcaves | Learned Research machine intel 3156 | -10/Subcaves | Ambushed by Subdweller buried in earth 3163 | -10/Subcaves | Core integrity fell below 20% 3720 | -10/Subcaves | Ambushed by Subdwellers from Twisted Machinery 3752 | -10/Subcaves | Destroyed by 2L-LXX(R) with Subdweller Laser Last Messages --------------- It looks like you're researching the legendary digger of dangerously deep tunnels, unfortunately it seems not even members of the Boring Crew know what became of that one. 02976_ System corrupted: Matter fused (-6). 02995_ Acquired 6 matter. 03011_ Acquired Multitool. 03029_ Dropped Multitool. 03157_ FC-DFW(R): "THANKSYOU!" 03171_ FC-DFW(R) suffers critical hit (Burn). 03171_ FC-DFW(R) destroyed. 03174_ Acquired 20 matter. 03178_ The unstable cave ceiling collapses. 03178_ 35 Matter crushed. 03471_ System corrupted: Matter fused (-5). 03569_ S-10 Pest destroyed. 03584_ Y-45 Defender destroyed. 03587_ Acquired 5 matter. 03591_ Acquired 10 matter. 03720_ 7T-7EA(R) emerges from the Twisted Machinery. 03739_ Lgt. Treads destroyed. Map ----- +----------------------------------------------------+ | ?????????????????????????????????????????????????? | | ?????????????????????????????????????????????????? | | ?????????????????????????????????????????????????? | | ?????????????????????????????????????????????????? | | ?????????????????????????????????????????????????? | | ?????????????????????????????????????????????????? | | ?????????????????????????????????????????????????? | | ?????????????????????????????????????????????????? | | ?????????????????????????????????????????????????? | | ?????????????????????????????????????????????????? | | ?????????????????????????????????????????????????? | | ?????????????????????????????????????????????????? | | ???????????????????????????????# ????????????????? | | ??????????????????????????????# ??????????????? | | ?????????????????????????????# ????????????? | | ??????????????#####????????## ????????????? | | ????????????? #??????### ??????#####? | | ????????????? #??????#< ??????# #? | | ?????????????# #?????? ?????# #? | | ?????????????# ???????#< ????## #? | | ?????????????# " #??????## ????# #? | | ?? #???????##" "#?????## ###### ## | | "???????# """?????## ???# | | """??????#"" ##???## #????## | | " "####???# #???# #??????# ### | | ?# """ ??## ##???# @ ######## ### ### | | ?# #### ##??## ## #####?? | | ???# # # #####R #?????? | | ????# ## #?????? | | ????## #### ##?????? | | ?????# ### ###??## ##??????? | | ????# ###### ## ##?####?????## ##???????? | | ????## ?????####### #?????????????##????????? | | ?????###???????????## ##???????????????????????? | | ????????????????????#####????????????????????????? | | ?????????????????????????????????????????????????? | | ?????????????????????????????????????????????????? | | ?????????????????????????????????????????????????? | | ?????????????????????????????????????????????????? | | ?????????????????????????????????????????????????? | | ?????????????????????????????????????????????????? | | ?????????????????????????????????????????????????? | | ?????????????????????????????????????????????????? | | ?????????????????????????????????????????????????? | | ?????????????????????????????????????????????????? | | ?????????????????????????????????????????????????? | | ?????????????????????????????????????????????????? | | ?????????????????????????????????????????????????? | | ?????????????????????????????????????????????????? | | | +----------------------------------------------------+ Best States ------------- Heat Dissipation 39 Energy Generation 12 Energy Capacity 265 Matter Stores 300 Matter Capacity 300 Sight Range 16 Terrain Scan Density 10 Armor Coverage 150 Resistance: EM 15 Evasion (%) 40 Recoil Reduction 2 Item Schematics ----------------- None Robot Schematics ------------------ None Fabricated ------------ Nothing Repaired ---------- Nothing Studied --------- None Alien Tech Used ----------------- None Achievements -------------- None Challenges ------------ None Game ------ Seed ControlPlexusLeg Manual? 0 Play Time 00:22:38 Cumulative 388.8 hours Start 2026.06.28 @ 03:21:44 End 2026.06.28 @ 03:37:59 Sessions 1 Manual Loads 0 Difficulty Rogue Special Mode None Game No. 294 Rogue 294 Adventurer 0 Explorer 0 Win Type - Total 8 Types 4/0/3/1/0/0/0/0/0/0 Lore% 76 Gallery% 72 Achievement% 42 Wizard Run 0 Options --------- Layout 2 ASCII 0 Keyboard 1 Movement Vi Keybinds 0 Fullscreen 2 Font 32/SmallcapsGlow Map View 77x44 Zoom Use 0% Tactical HUD 1 Map Filters NONE Filters NONE Steam 1 RUN: 64e9a75a-392b-425e-afab-1c574965611c